bitfinex/quotes_SOLUSD_20250815
["timestamp","ask_amount","ask_price","bid_price","bid_amount"]
[1755301908282,30.41882601,185.62,185.61,0.03]
[1755301908995,34.40531515,185.62,185.61,0.03]
[1755301909195,34.86041213,185.62,185.61,0.03]
[1755301909502,30.41882601,185.62,185.61,0.03]
[1755301909983,24.76604515,185.62,185.61,0.03]
[1755301910179,30.41882601,185.62,185.61,0.03]
[1755301911310,34.41205666,185.62,185.61,0.03]
[1755301912095,28.0592758,185.62,185.61,0.03]
[1755301912406,22.6719253,185.62,185.61,0.03]
[1755301914620,23.3719253,185.62,185.61,0.03]
[1755301915118,28.7592758,185.62,185.61,0.03]
[1755301920941,3.99323065,185.62,185.61,6.34278086]
[1755301921105,7.58329827,185.62,185.61,6.34278086]
[1755301921307,3.99323065,185.62,185.61,6.34278086]
[1755301921505,0.06,185.65,185.61,6.34278086]
[1755301921701,0.06,185.65,185.64,5.65278086]
[1755301921918,4.0507107,185.65,185.64,5.65278086]
[1755301922210,4.04990888,185.65,185.64,5.65278086]
[1755301922519,7.63970539,185.65,185.64,6.31278086]
[1755301923630,7.63970539,185.65,185.64,5.65278086]
[1755301925110,3.64979651,185.65,185.64,5.65278086]
[1755301925312,7.64190438,185.65,185.64,5.65278086]
[1755301927321,4.05210787,185.65,185.64,5.65278086]
[1755301927719,0.06,185.65,185.64,6.31278086]
[1755301927911,4.05251277,185.65,185.64,6.31278086]
[1755301928117,4.05251277,185.65,185.64,5.65278086]
[1755301929026,15.10621557,185.64,185.61,0.03]
[1755301929225,7.58144501,185.63,185.61,0.03]
[1755301929424,7.58144501,185.62,185.61,0.03]
[1755301930210,8.28144501,185.62,185.61,0.03]
[1755301930431,34.42779194,185.62,185.61,0.03]
[1755301933336,38.91537647,185.62,185.61,0.03]
[1755301933539,15.10621557,185.61,185.59,0.03]
[1755301933731,61.47737989,185.6,185.59,0.03]
[1755301933918,57.0021569,185.6,185.59,0.03]
[1755301934118,57.7021569,185.6,185.59,0.03]
[1755301934341,52.04937604,185.6,185.59,0.03]
[1755301934548,57.0021569,185.6,185.59,0.03]
[1755301935029,28.07559161,185.6,185.59,0.03]
[1755301935344,7.58144501,185.6,185.59,0.03]
[1755301935650,12.96937604,185.6,185.59,0.03]
[1755301936016,7.58144501,185.6,185.59,0.73]
[1755301936622,7.58144501,185.6,185.59,0.03]
[1755301936827,7.57114943,185.6,185.59,0.03]
[1755301937941,19.31186132,185.6,185.59,0.03]
[1755301939055,13.65908046,185.6,185.59,0.03]
[1755301940647,19.31186132,185.6,185.59,0.03]
[1755301942636,12.95908046,185.6,185.59,0.03]
[1755301944331,7.57114943,185.6,185.59,0.73]
[1755301944542,7.57114943,185.6,185.59,6.38278086]
[1755301944932,0.06,185.61,185.59,6.38278086]
[1755301945128,0.06,185.61,185.6,6.35278086]
[1755301946632,0.06,185.61,185.6,11.74071189]
[1755301950952,0.06,185.61,185.6,50.10071189]
[1755301953755,0.06,185.61,185.6,49.40071189]
[1755301954553,0.06,185.61,185.6,50.10071189]
[1755301955454,0.06,185.61,185.6,129.30071189]
[1755301959956,0.06,185.61,185.6,128.60071189]
[1755301961470,0.06,185.61,185.6,44.01278086]
[1755301961839,0.06,185.63,185.6,50.63950499]
[1755301962046,0.06,185.65,185.62,5.65278086]
[1755301962363,0.06,185.65,185.64,5.65278086]
[1755301962564,0.06,185.65,185.64,6.35278086]
[1755301963668,0.06,185.65,185.64,12.54423872]
[1755301964052,0.06,185.65,185.64,17.93100881]
[1755301964760,0.06,185.65,185.64,12.27822795]
[1755301967344,0.06,185.65,185.64,91.47822795]
[1755301969765,0.06,185.69,185.68,26.0]
[1755301969970,0.2,185.7,185.68,149.17278086]
[1755301970272,0.2,185.7,185.69,6.35278086]
[1755301971073,0.2,185.7,185.69,11.73810047]
[1755301973060,0.2,185.7,185.69,11.03810047]
[1755301973244,0.2,185.7,185.69,90.23810047]
[1755301977481,0.2,185.7,185.69,84.85278086]
[1755301977664,0.88,185.7,185.69,84.85278086]
[1755301977861,0.88,185.7,185.69,123.15278086]
[1755301980162,0.88,185.7,185.69,38.3]
[1755301980690,0.88,185.7,185.68,38.3]
[1755301980886,0.68,185.69,185.68,38.3]
[1755301981262,0.68,185.69,185.68,43.95278086]
[1755301982060,0.68,185.69,185.68,38.3]
[1755301982688,0.68,185.69,185.67,38.3]
[1755301983081,11.71810047,185.69,185.66,38.3]
[1755301983268,0.68,185.68,185.66,38.3]
[1755301983784,0.68,185.68,185.66,43.95278086]
[1755301983974,0.68,185.69,185.67,5.65278086]
[1755301984174,0.2,185.7,185.68,43.95278086]
[1755301984764,0.68,185.69,185.68,43.95278086]
[1755301987081,0.68,185.69,185.68,38.3]
[1755301987485,0.68,185.69,185.68,43.95278086]
[1755301997005,0.2,185.7,185.68,43.95278086]
[1755301997186,0.92,185.7,185.68,43.95278086]
[1755301998407,0.2,185.7,185.68,43.95278086]
[1755301998591,0.72,185.69,185.68,43.95278086]
[1755302000611,0.2,185.7,185.68,43.95278086]
[1755302000797,0.2,185.7,185.69,5.65278086]
[1755302001176,3.78846192,185.7,185.69,6.33278086]
[1755302001404,3.78846192,185.7,185.69,5.65278086]
[1755302002020,3.78846192,185.7,185.69,11.03810047]
[1755302002212,0.92,185.7,185.69,5.65278086]
[1755302002384,8.49544609,185.7,185.68,43.95278086]
[1755302002580,0.72,185.69,185.68,43.95278086]
[1755302002779,0.72,185.69,185.68,38.3]
[1755302002999,4.30971232,185.69,185.68,38.3]
[1755302003218,8.29853369,185.69,185.68,38.3]
[1755302003603,8.29853369,185.69,185.68,43.95278086]
[1755302003808,7.57853369,185.69,185.68,43.95278086]
[1755302003999,7.57853369,185.69,185.68,49.33839051]
[1755302004199,0.2,185.7,185.68,50.01839051]
[1755302004504,0.2,185.7,185.69,5.65278086]
[1755302005408,3.7898224,185.7,185.69,5.65278086]
[1755302009096,7.7842227,185.7,185.69,5.65278086]
[1755302009627,3.7898224,185.7,185.69,5.65278086]
[1755302009997,8.50313383,185.7,185.68,38.3]
[1755302010194,8.30286833,185.69,185.68,38.3]
[1755302010417,8.30275774,185.69,185.68,38.3]
[1755302012029,8.30331585,185.69,185.68,38.3]
[1755302012629,4.3098224,185.69,185.68,38.3]
[1755302012791,8.30408432,185.69,185.68,38.3]
[1755302013307,19.34224142,185.69,185.66,0.03]
[1755302013630,8.30408432,185.68,185.66,0.03]
[1755302013832,7.58408432,185.67,185.66,0.03]
[1755302014002,8.30408432,185.67,185.66,0.03]
[1755302014819,13.68998403,185.67,185.66,0.03]
[1755302015712,34.44898046,185.67,185.66,0.03]
[1755302016727,38.92131972,185.67,185.66,0.03]
[1755302018601,77.18131972,185.67,185.66,0.03]
[1755302019432,7.58408432,185.67,185.66,5.68278086]
[1755302020045,7.58408432,185.67,185.66,0.03]
[1755302020346,8.30408432,185.67,185.66,0.03]
[1755302020509,7.58408432,185.67,185.66,0.03]
[1755302021327,8.30408432,185.67,185.66,0.03]
[1755302023824,7.58408432,185.67,185.66,0.03]
[1755302024423,8.30408432,185.67,185.66,0.03]
[1755302024628,8.29583042,185.67,185.66,0.03]
[1755302026213,8.29815818,185.67,185.66,0.03]
[1755302029527,34.44305432,185.67,185.66,0.03]
[1755302039341,28.79027346,185.67,185.66,0.03]
[1755302039951,7.57815818,185.67,185.66,0.03]
[1755302040266,3.5898224,185.67,185.66,6.37278086]
[1755302040653,3.5898224,185.67,185.66,11.75897066]
[1755302041155,3.5898224,185.67,185.66,0.72]
[1755302041344,0.77,185.69,185.66,5.68278086]
[1755302041537,3.58672167,185.68,185.66,5.41611986]
[1755302041739,0.06,185.69,185.67,6.34278086]
[1755302041957,0.06,185.69,185.68,5.65278086]
[1755302042272,3.64817536,185.69,185.68,5.65278086]
[1755302042645,3.64855465,185.69,185.68,5.65278086]
[1755302044545,3.64855465,185.69,185.68,6.34278086]
[1755302045245,0.06,185.69,185.68,6.34278086]
[1755302045451,0.06,185.69,185.68,5.65278086]
[1755302045838,0.06,185.69,185.67,5.38589768]
[1755302046045,0.06,185.69,185.68,5.65278086]
[1755302050576,0.06,185.69,185.68,11.03839051]
[1755302051154,0.06,185.69,185.68,11.72839051]
[1755302051543,0.06,185.69,185.68,5.65278086]
[1755302052645,4.36246291,185.69,185.68,5.65278086]
[1755302052952,8.35378813,185.69,185.68,5.65278086]
[1755302060554,7.64378813,185.69,185.68,5.65278086]
[1755302062087,7.64378813,185.69,185.68,6.35278086]
[1755302062388,0.06,185.69,185.68,6.35278086]
[1755302062889,3.6542346,185.69,185.68,6.35278086]
[1755302063185,3.6542346,185.69,185.68,5.65278086]
[1755302066901,3.6542346,185.69,185.68,3.61069921]
[1755302070697,0.06,185.69,185.68,9.69630886]
[1755302072394,0.06,185.69,185.68,88.89630886]
[1755302074584,0.06,185.69,185.68,88.92630886]
[1755302074798,0.06,185.69,185.68,90.95406308]
[1755302082312,0.06,185.69,185.68,93.11220108]
[1755302084098,0.78,185.69,185.68,79.23]
[1755302084399,0.06,185.69,185.68,128.39406308]
[1755302088793,0.06,185.69,185.68,49.19406308]
[1755302089186,0.06,185.69,185.68,49.91406308]
[1755302089394,0.06,185.69,185.68,52.07220108]
[1755302090800,0.06,185.69,185.68,131.27220108]
[1755302091015,0.06,185.69,185.68,157.27220108]
[1755302094813,0.06,185.69,185.68,155.24224727]
[1755302095212,0.2,185.7,185.68,155.24224727]
[1755302095415,0.2,185.7,185.69,3.60849962]
[1755302095926,0.2,185.7,185.69,4.32849962]
[1755302096592,0.2,185.7,185.69,9.71381923]
[1755302096930,0.2,185.7,185.69,11.87172423]
[1755302098604,0.2,185.7,185.69,12.41025619]
[1755302098808,0.06,185.71,185.69,12.41025619]
[1755302099107,0.06,185.71,185.7,42.44849962]
[1755302099307,0.06,185.72,185.7,3.60849962]
[1755302099498,0.68,185.71,185.7,107.357904]
[1755302099697,0.68,185.71,185.7,145.457904]
[1755302100496,0.06,185.72,185.7,150.84293361]
[1755302100810,30.16240748,185.82,185.74,26.0]
[1755302100811,8.28620793,185.78,185.74,26.0]
[1755302101019,10.9,185.82,185.74,146.90849962]
[1755302101222,0.68,185.78,185.74,147.62849962]
[1755302101420,0.68,185.78,185.74,158.52849962]
[1755302102615,0.68,185.78,185.74,165.93881476]
[1755302104234,4.34408788,185.75,185.74,38.1]
[1755302104411,8.34859405,185.75,185.74,38.1]
[1755302104745,4.34408788,185.75,185.74,38.1]
[1755302104936,4.34408788,185.75,185.74,43.73494484]
[1755302105616,4.34408788,185.75,185.74,38.1]
[1755302106129,8.35033886,185.75,185.74,38.1]
[1755302106326,8.35033886,185.75,185.74,43.48386992]
[1755302106526,4.34408788,185.75,185.74,49.11881476]
[1755302107137,4.34408788,185.75,185.74,49.14881476]
[1755302107517,0.74,185.75,185.74,49.14881476]
[1755302112155,4.3396234,185.75,185.74,49.14881476]
[1755302114844,3.6596234,185.75,185.74,49.14881476]
[1755302115038,0.06,185.75,185.74,49.86881476]
[1755302115230,0.06,185.75,185.74,134.7037596]
[1755302115850,0.06,185.75,185.74,136.8610826]
[1755302116947,0.06,185.75,185.74,131.22613776]
[1755302117364,0.06,185.75,185.74,124.87119292]
[1755302117533,0.06,185.75,185.74,130.50613776]
[1755302120459,0.06,185.75,185.74,136.8410826]
[1755302122162,0.06,185.75,185.74,131.20613776]
[1755302122544,0.06,185.75,185.74,136.8410826]
[1755302124758,0.06,185.75,185.74,98.0410826]
[1755302125063,0.06,185.75,185.74,130.46613776]
[1755302125375,0.06,185.75,185.74,131.16613776]
[1755302126758,0.06,185.75,185.74,136.8010826]
[1755302127743,0.06,185.75,185.74,130.46613776]
[1755302128353,0.06,185.75,185.74,92.5119967]
[1755302128563,0.78,185.75,185.74,90.3546737]
[1755302128770,0.78,185.75,185.74,128.4146737]
[1755302131361,8.38036814,185.75,185.74,38.09]
[1755302132873,8.38036814,185.75,185.74,38.07]
[1755302133450,8.38036814,185.75,185.74,43.81080378]
[1755302133772,8.38036814,185.75,185.74,49.1946737]
[1755302135448,3.66014205,185.75,185.74,49.1946737]
[1755302136067,4.38014205,185.75,185.74,49.1946737]
[1755302136373,8.37986938,185.75,185.74,49.1946737]
[1755302137059,4.38014205,185.75,185.74,49.1946737]
[1755302137368,0.78,185.75,185.74,49.1946737]
[1755302138165,0.06,185.75,185.74,49.1946737]
[1755302141577,0.78,185.75,185.74,49.1946737]
[1755302141879,0.78,185.75,185.74,128.3946737]
[1755302142673,0.06,185.75,185.74,128.3946737]
[1755302143081,0.06,185.75,185.74,129.0946737]
[1755302143254,0.06,185.75,185.74,128.3946737]
[1755302146076,0.06,185.75,185.74,129.0646737]
[1755302148389,0.06,185.75,185.74,128.3946737]
[1755302149091,0.78,185.75,185.74,128.3946737]
[1755302149467,0.06,185.75,185.74,128.3946737]
[1755302149655,0.06,185.75,185.74,129.0646737]
[1755302152686,1e-08,185.75,185.74,129.0646737]
[1755302152888,0.06,185.77,185.76,26.0]
[1755302153097,0.06,185.77,185.76,69.76080378]
[1755302153591,0.06,185.77,185.76,70.43080378]
[1755302154179,0.06,185.77,185.76,75.81409404]
[1755302154879,0.06,185.77,185.76,75.14409404]
[1755302155287,0.06,185.77,185.76,75.81409404]
[1755302156572,0.06,185.77,185.76,155.01409404]
[1755302157175,0.06,185.79,185.76,155.01409404]
[1755302157378,0.06,185.79,185.78,5.74080378]
[1755302157575,0.06,185.79,185.78,43.74080378]
[1755302158698,0.06,185.79,185.78,50.15160756]
[1755302158869,0.06,185.79,185.78,55.53431829]
[1755302159792,0.06,185.79,185.78,49.79351451]
[1755302161601,0.06,185.81,185.8,26.0]
[1755302161813,0.78,185.85,185.8,148.94080378]
[1755302161975,0.78,185.85,185.84,5.74080378]
[1755302162173,0.78,185.85,185.84,43.74080378]
[1755302162373,0.06,185.85,185.84,43.74080378]
[1755302162906,0.78,185.85,185.84,43.74080378]
[1755302163400,0.78,185.85,185.84,43.38097287]
[1755302163579,0.78,185.85,185.84,49.12177665]
[1755302163785,0.78,185.85,185.84,43.38097287]
[1755302163978,0.78,185.85,185.82,5.74080378]
[1755302164179,0.78,185.85,185.83,38.0]
[1755302164382,0.78,185.85,185.84,5.74080378]
[1755302165409,0.78,185.85,185.84,11.12177665]
[1755302166277,0.78,185.85,185.84,5.74080378]
[1755302166885,0.78,185.85,185.84,11.12177665]
[1755302167093,0.78,185.85,185.84,49.10177665]
[1755302171703,0.78,185.85,185.84,43.72080378]
[1755302173410,0.78,185.85,185.84,49.10177665]
[1755302173616,0.78,185.85,185.84,37.98]
[1755302173783,0.78,185.85,185.84,43.72080378]
[1755302175316,0.78,185.85,185.84,49.10177665]
[1755302176930,0.28,185.85,185.84,49.10177665]
[1755302180804,0.06,185.87,185.84,49.10177665]
[1755302181117,0.72,185.86,185.85,5.74080378]
[1755302183309,0.06,185.87,185.85,11.12127543]
[1755302183518,0.06,185.87,185.86,43.70080378]
[1755302183725,0.06,185.87,185.86,44.36080378]
[1755302183925,0.78,185.87,185.86,43.70080378]
[1755302185012,0.78,185.87,185.86,37.96]
[1755302185330,0.78,185.87,185.8,26.0]
[1755302185331,15.10621557,185.79,185.76,0.03]
[1755302185517,0.72,185.78,185.76,0.03]
[1755302185837,0.72,185.8,185.77,43.70080378]
[1755302186136,4.30731714,185.82,185.77,37.96]
[1755302186313,0.72,185.81,185.77,37.96]
[1755302186509,4.7064676,185.8,185.78,5.74080378]
[1755302186724,4.30809952,185.85,185.79,44.36080378]
[1755302186941,3.98682322,185.84,185.81,5.38184166]
[1755302187110,0.78,185.87,185.82,38.62]
[1755302187312,3.9873934,185.86,185.82,38.62]
[1755302187533,3.9873934,185.85,185.82,37.96]
[1755302187735,0.06,185.87,185.83,0.66]
[1755302187936,3.98688072,185.86,185.84,38.62]
[1755302188231,3.98688072,185.85,185.84,38.62]
[1755302188818,0.06,185.87,185.82,26.66]
[1755302189025,3.98768054,185.86,185.83,43.34126244]
[1755302189335,0.78,185.87,185.85,5.74080378]
[1755302189528,0.78,185.87,185.83,44.00126244]
[1755302189529,0.78,185.87,185.86,43.70080378]
[1755302189724,4.76998851,185.87,185.86,43.70080378]
[1755302190408,4.04998851,185.87,185.86,43.70080378]
[1755302191019,0.06,185.87,185.86,49.74119762]
[1755302191416,4.7713733,185.87,185.85,5.74080378]
[1755302191622,0.06,185.87,185.86,44.36080378]
[1755302192530,0.06,185.87,185.86,49.08119762]
[1755302193433,4.05197925,185.87,185.86,49.08119762]
[1755302193827,0.06,185.87,185.86,49.08119762]
[1755302194630,0.06,185.87,185.86,49.74119762]
[1755302195228,0.06,185.89,185.86,49.74119762]
[1755302195424,0.06,185.89,185.88,5.74080378]
[1755302195629,4.0542262,185.89,185.88,43.70080378]
[1755302196151,0.06,185.89,185.88,43.70080378]
[1755302196821,0.06,185.89,185.88,49.08061871]
[1755302197826,0.06,185.89,185.88,43.70080378]
[1755302198034,4.05531341,185.89,185.88,43.70080378]
[1755302198245,4.05531341,185.89,185.88,49.08061871]
[1755302198539,4.05531341,185.89,185.88,49.74061871]
[1755302199527,4.0545857,185.89,185.88,49.74061871]
[1755302199727,4.05458343,185.89,185.88,49.74061871]
[1755302200127,0.06,185.89,185.88,49.74061871]
[1755302205460,0.06,185.9,185.89,15.10621557]
[1755302205633,0.06,185.91,185.9,37.48160756]
[1755302205826,0.06,185.91,185.9,76.18160756]
[1755302207463,1e-08,185.91,185.9,81.5608437]
[1755302207758,1e-08,185.91,185.9,83.7160747]
[1755302208336,0.06,185.92,185.9,83.7160747]
[1755302208549,0.06,185.92,185.91,6.46080378]
[1755302208951,1e-08,185.92,185.91,6.46080378]
[1755302209164,0.06,185.93,185.91,6.46080378]
[1755302209165,0.06,185.93,185.91,85.66080378]
[1755302209343,0.06,185.93,185.92,43.74080378]
[1755302209548,0.06,185.93,185.92,49.83946126]
[1755302210249,0.06,185.93,185.92,49.11946126]
[1755302211366,0.06,185.93,185.92,49.83946126]
[1755302211669,0.06,185.93,185.92,49.11946126]
[1755302211965,0.06,185.93,185.92,49.83946126]
[1755302212167,0.06,185.93,185.92,44.09865748]
[1755302212341,0.06,185.93,185.92,49.83946126]
[1755302212854,0.06,185.93,185.92,129.03946126]
[1755302214254,0.7,186.0,185.92,142.48610497]
[1755302214458,0.7,185.97,185.92,84.57865748]
[1755302214675,3.99177807,185.96,185.93,43.72080378]
[1755302214837,5.74080378,185.99,185.93,122.92080378]
[1755302215038,0.7,185.95,185.93,122.92080378]
[1755302215344,0.7,185.95,185.93,37.98]
[1755302215751,3.99055037,185.94,185.93,37.98]
[1755302215941,10.43135415,185.94,185.93,37.98]
[1755302216442,15.8094331,185.94,185.93,37.98]
[1755302217064,10.06862932,185.94,185.93,37.98]
[1755302217758,4.69055037,185.94,185.93,37.98]
[1755302218158,10.06862932,185.94,185.89,5.74080378]
[1755302218463,4.69055037,185.93,185.9,38.02]
[1755302218659,4.69055037,185.92,185.9,38.02]
[1755302218973,0.7,185.91,185.9,38.02]
[1755302219972,4.69068759,185.91,185.9,38.02]
[1755302220264,4.69068759,185.91,185.9,43.76080378]
[1755302220559,0.7,185.91,185.9,38.02]
[1755302221150,0.7,185.91,185.9,43.76080378]
[1755302222880,0.7,185.95,185.9,49.86003992]
[1755302223099,4.69298552,185.94,185.9,38.02]
[1755302223376,4.69298552,185.93,185.91,5.74080378]
[1755302223581,5.74080378,185.97,185.92,38.04]
[1755302223751,7.58793272,185.96,185.92,38.04]
[1755302223951,7.58793272,185.95,185.92,38.04]
[1755302224152,4.69357353,185.94,185.92,38.04]
[1755302224369,4.69357353,185.93,185.92,38.04]
[1755302224569,3.99357353,185.93,185.92,49.15946126]
[1755302225272,3.99357353,185.93,185.92,38.04]
[1755302225583,4.69357353,185.93,185.92,38.04]
[1755302227454,10.07194173,185.93,185.91,38.06]
[1755302227779,4.69357353,185.92,185.91,38.06]
[1755302227974,3.99357353,185.92,185.91,38.06]
[1755302228383,3.99357353,185.92,185.91,43.80080378]
[1755302228584,3.99357353,185.92,185.91,49.17975058]
[1755302228772,3.99357353,185.92,185.91,43.4389468]
[1755302228981,3.99357353,185.92,185.91,49.17975058]
[1755302229266,4.69357353,185.92,185.91,38.06]
[1755302229475,3.99357353,185.92,185.91,49.17975058]
[1755302229865,4.69357353,185.92,185.91,38.06]
[1755302231162,8.29649976,185.92,185.91,38.06]
[1755302232675,3.99357353,185.92,185.91,43.80080378]
[1755302232875,3.99357353,185.92,185.91,49.17975058]
[1755302233471,0.76,185.98,185.91,49.89975058]
[1755302233771,4.00304549,185.97,185.92,0.72]
[1755302233971,4.00304549,185.96,185.93,38.1]
[1755302234180,0.06,185.98,185.94,0.72]
[1755302234472,4.00432513,185.97,185.96,5.37750053]
[1755302234668,4.00432513,185.97,185.96,43.47750053]
[1755302234992,4.00432513,185.97,185.96,49.21830431]
[1755302235193,4.00432513,185.97,185.96,49.93830431]
[1755302237294,0.06,185.98,185.96,49.93830431]
[1755302237477,0.06,185.98,185.97,6.46080378]
[1755302238393,0.06,185.98,185.97,85.66080378]
[1755302238704,0.75,185.98,185.97,79.2]
[1755302238872,4.7550598,185.98,185.97,79.2]
[1755302239292,4.7550598,185.98,185.97,117.3]
[1755302239700,8.35859345,185.98,185.97,117.32]
[1755302239996,8.35859345,185.98,185.97,38.12]
[1755302245992,13.73551569,185.98,185.97,38.12]
[1755302246295,8.35859345,185.98,185.97,38.12]
[1755302250179,8.35199473,185.98,185.97,38.12]
[1755302250378,13.72891697,185.98,185.97,38.12]
[1755302251094,13.72891697,185.98,185.94,5.74080378]
[1755302251296,8.29199473,185.97,185.96,38.04]
[1755302252308,34.51622545,185.97,185.94,38.02]
[1755302252628,8.29199473,185.96,185.94,38.02]
[1755302252778,7.60199473,185.95,185.94,38.02]
[1755302253309,8.29199473,185.95,185.94,38.02]
[1755302255707,7.60199473,185.95,185.94,38.02]
[1755302256018,8.29199473,185.95,185.94,38.02]
[1755302256800,13.66978445,185.95,185.94,38.02]
[1755302258293,7.60199473,185.95,185.94,38.02]
[1755302258809,8.29199473,185.95,185.94,38.02]
[1755302259197,7.60199473,185.95,185.94,38.02]
[1755302264003,8.29199473,185.95,185.94,37.52]
[1755302265631,13.66978445,185.95,185.94,37.52]
[1755302265833,13.66978445,185.95,185.93,0.03]
[1755302266005,7.60199473,185.94,185.93,37.99]
[1755302268433,7.60199473,185.94,185.93,38.7]
[1755302268613,7.60199473,185.94,185.93,37.99]
[1755302270431,7.59614167,185.94,185.93,37.99]
[1755302274029,8.30614167,185.94,185.93,37.99]
[1755302274245,7.59614167,185.94,185.93,37.99]
[1755302275030,7.65614167,185.94,185.93,37.99]
[1755302275632,8.36614167,185.94,185.93,37.99]
[1755302277047,7.65614167,185.94,185.93,37.99]
[1755302280223,7.65614167,185.94,185.93,38.7]
[1755302280431,7.65614167,185.94,185.93,44.44080378]
[1755302281144,7.65614167,185.94,185.93,37.99]
[1755302283345,8.36614167,185.94,185.93,37.99]
[1755302284143,7.65614167,185.94,185.93,37.99]
[1755302286129,7.65614167,185.94,185.93,38.7]
[1755302286618,7.65614167,185.94,185.93,37.99]
[1755302293238,7.65614167,185.94,185.93,38.7]
[1755302297748,7.67644914,185.94,185.93,38.7]
[1755302299153,7.67644914,185.94,185.93,49.81917198]
[1755302301548,7.67644914,185.94,185.93,129.01917198]
[1755302302853,4.05846108,185.94,185.93,129.01917198]
[1755302303149,7.67444698,185.94,185.93,129.01917198]
[1755302303331,4.05846108,185.94,185.93,129.01917198]
[1755302306627,4.07270069,185.94,185.93,129.01917198]
[1755302308660,4.07270069,185.94,185.93,126.9451925]
[1755302313866,4.07270069,185.94,185.93,120.8568243]
[1755302314072,8.34344533,185.94,185.93,82.8968243]
[1755302314276,13.72152428,185.94,185.93,79.23]
[1755302314569,13.72152428,185.94,185.93,117.17]
[1755302314767,8.34344533,185.94,185.93,117.17]
[1755302315649,8.34344533,185.94,185.93,120.8368243]
[1755302316267,13.72152428,185.94,185.93,117.17]
[1755302316476,8.34344533,185.94,185.93,117.17]
[1755302316653,8.34344533,185.94,185.93,122.90110343]
[1755302317247,7.68344533,185.94,185.93,123.56110343]
[1755302318471,7.68344533,185.94,185.93,128.93947163]
[1755302318652,4.07270069,185.94,185.93,128.93947163]
[1755302321657,0.06,185.96,185.95,5.73110343]
[1755302321864,0.06,185.96,185.95,43.67110343]
[1755302322064,0.06,185.96,185.95,44.33110343]
[1755302323169,0.06,185.96,185.95,49.70889315]
[1755302323776,0.06,185.96,185.95,51.86389115]
[1755302324160,0.06,185.98,185.95,51.86389115]
[1755302324366,0.06,185.99,185.97,5.73110343]
[1755302324563,0.06,185.99,185.98,43.65110343]
[1755302324760,0.06,185.99,185.98,44.31110343]
[1755302325378,0.06,186.0,185.99,11.10773658]
[1755302325881,0.66,186.05,185.99,17.54884001]
[1755302326077,3.61110258,186.04,186.0,37.92]
[1755302326381,0.71,186.03,186.01,37.92]
[1755302326680,0.71,186.03,186.02,37.92]
[1755302326881,4.31917333,186.03,186.02,37.92]
[1755302327354,9.69466833,186.03,186.01,5.73110343]
[1755302327550,4.31917333,186.02,186.0,5.73110343]
[1755302327753,0.71,186.02,186.01,37.92]
[1755302327971,0.71,186.02,185.94,36.404668]
[1755302327972,4.31872643,186.02,185.97,5.73110343]
[1755302328181,4.31872643,186.01,185.98,37.92]
[1755302328475,11.10659843,186.03,185.98,37.92]
[1755302328476,4.31872643,186.0,185.98,37.92]
[1755302328680,4.31872643,185.99,185.98,37.92]
[1755302329304,9.69535958,185.99,185.98,37.92]
[1755302330868,4.31872643,185.99,185.98,43.65110343]
[1755302331069,9.69535958,185.99,185.98,37.92]
[1755302332761,4.31872643,185.99,185.98,37.92]
[1755302333583,8.33106816,185.99,185.98,37.92]
[1755302338488,13.70770131,185.99,185.97,37.92]
[1755302338679,8.33106816,185.98,185.96,37.92]
[1755302338875,8.33106816,185.97,185.95,0.03]
[1755302339192,8.33106816,185.97,185.95,37.95]
[1755302339193,7.62490982,185.96,185.95,37.95]
[1755302339398,8.33490982,185.96,185.95,37.95]
[1755302340079,7.62490982,185.96,185.95,44.39110343]
[1755302340597,7.62490982,185.96,185.95,49.76889315]
[1755302340774,4.01526832,185.96,185.95,49.76889315]